[Event "The Kvibergspelen 2024"]
[Site "Kviberg Park Hotel & Conference, Krutvagen 2, Gothenburg, Sweden"]
[Date "2024.09.07"]
[Round "6.17"]
[White "Degerfeldt, Sven"]
[Black "Al Waeli, Laith"]
[Result "0-1"]
[TimeControl "15 minutes + 5 seconds per move from move one (Round 1 - 4) / 90 minutes + 30 seconds per move from move one (Round 5 - 8)"]
[BlackTitle "FM"]
[WhiteFideId "1717430"]
[BlackFideId "4801059"]
[WhiteElo "1915"]
[BlackElo "2049"]

1. d4 {[%clk 01:30:53]} {[%emt 00:00:05]} Nf6 {[%clk 01:24:14]} {[%emt
00:06:47]} 2. Nf3 {[%clk 01:31:13]} {[%emt 00:00:10]} g6 {[%clk 01:24:37]}
{[%emt 00:00:07]} 3. g3 {[%clk 01:28:14]} {[%emt 00:03:28]} Bg7 {[%clk
01:24:57]} {[%emt 00:00:10]} 4. Bg2 {[%clk 01:28:30]} {[%emt 00:00:14]} O-O
{[%clk 01:25:13]} {[%emt 00:00:15]} 5. O-O {[%clk 01:28:14]} {[%emt 00:00:45]}
d6 {[%clk 01:25:38]} {[%emt 00:00:06]} 6. c4 {[%clk 01:27:55]} {[%emt
00:00:48]} Nbd7 {[%clk 01:25:40]} {[%emt 00:00:29]} 7. Nc3 {[%clk 01:27:47]}
{[%emt 00:00:38]} e5 {[%clk 01:26:02]} {[%emt 00:00:08]} 8. e4 {[%clk
01:24:18]} {[%emt 00:03:59]} a6 {[%clk 01:24:24]} {[%emt 00:02:09]} 9. dxe5
{[%clk 01:20:37]} {[%emt 00:04:10]} dxe5 {[%clk 01:24:49]} {[%emt 00:00:05]} 10.
Qc2 {[%clk 01:20:25]} {[%emt 00:00:41]} c6 {[%clk 01:23:46]} {[%emt 00:01:34]}
11. h3 {[%clk 01:20:05]} {[%emt 00:00:50]} b5 {[%clk 01:19:17]} {[%emt
00:05:00]} 12. Rd1 {[%clk 01:17:45]} {[%emt 00:02:48]} Qe7 {[%clk 01:18:39]}
{[%emt 00:01:09]} 13. Be3 {[%clk 01:10:39]} {[%emt 00:07:35]} b4 {[%clk
01:11:28]} {[%emt 00:07:42]} 14. Na4 {[%clk 01:11:05]} {[%emt 00:00:04]} c5
{[%clk 01:11:51]} {[%emt 00:00:08]} 15. b3 {[%clk 01:10:28]} {[%emt 00:01:05]}
Bb7 {[%clk 01:12:14]} {[%emt 00:00:08]} 16. Ne1 {[%clk 01:08:20]} {[%emt
00:02:38]} Bc6 {[%clk 01:12:25]} {[%emt 00:00:20]} 17. Nb2 {[%clk 01:08:18]}
{[%emt 00:00:31]} Rfd8 {[%clk 01:01:49]} {[%emt 00:11:06]} 18. Rd2 {[%clk
01:08:05]} {[%emt 00:00:43]} Nf8 {[%clk 00:56:18]} {[%emt 00:06:00]} 19. Rad1
{[%clk 01:07:50]} {[%emt 00:00:46]} Ne6 {[%clk 00:55:47]} {[%emt 00:01:01]} 20.
Rxd8+ {[%clk 01:07:44]} {[%emt 00:00:36]} Rxd8 {[%clk 00:56:07]} {[%emt
00:00:10]} 21. Rxd8+ {[%clk 01:07:26]} {[%emt 00:00:48]} Qxd8 {[%clk 00:56:22]}
{[%emt 00:00:15]} 22. f3 {[%clk 01:02:52]} {[%emt 00:05:04]} Nh5 {[%clk
00:51:54]} {[%emt 00:04:57]} 23. Kh2 {[%clk 01:01:46]} {[%emt 00:01:36]} Qf8
{[%clk 00:46:12]} {[%emt 00:06:13]} 24. Qd2 {[%clk 00:48:06]} {[%emt 00:14:10]}
f5 {[%clk 00:44:39]} {[%emt 00:02:03]} 25. Bf2 {[%clk 00:45:42]} {[%emt
00:02:53]} Bh6 {[%clk 00:42:58]} {[%emt 00:02:11]} 26. Qc2 {[%clk 00:44:19]}
{[%emt 00:01:53]} fxe4 {[%clk 00:32:40]} {[%emt 00:10:48]} 27. fxe4 {[%clk
00:44:33]} {[%emt 00:00:17]} Nd4 {[%clk 00:30:32]} {[%emt 00:02:38]} 28. Bxd4
{[%clk 00:44:17]} {[%emt 00:00:45]} cxd4 {[%clk 00:24:41]} {[%emt 00:06:21]} 29.
Bf3 {[%clk 00:35:41]} {[%emt 00:09:06]} Nf6 {[%clk 00:17:15]} {[%emt 00:07:56]}
30. Qg2 {[%clk 00:33:30]} {[%emt 00:02:41]} Nd7 {[%clk 00:10:57]} {[%emt
00:06:49]} 31. Nbd3 {[%clk 00:33:22]} {[%emt 00:00:37]} a5 {[%clk 00:11:22]}
{[%emt 00:00:06]} 32. Bg4 {[%clk 00:32:06]} {[%emt 00:01:45]} Qe7 {[%clk
00:08:58]} {[%emt 00:02:54]} 33. Bxd7 {[%clk 00:25:20]} {[%emt 00:07:17]} Bxd7
{[%clk 00:09:21]} {[%emt 00:00:06]} 34. Nf3 {[%clk 00:25:35]} {[%emt 00:00:15]}
Bg7 {[%clk 00:09:46]} {[%emt 00:00:07]} 35. g4 {[%clk 00:25:44]} {[%emt
00:00:19]} Bc6 {[%clk 00:09:38]} {[%emt 00:00:38]} 36. Nf2 {[%clk 00:22:41]}
{[%emt 00:03:33]} Qd7 {[%clk 00:09:11]} {[%emt 00:00:58]} 37. g5 {[%clk
00:21:45]} {[%emt 00:01:25]} a4 {[%clk 00:07:34]} {[%emt 00:02:08]} 38. Qg4
{[%clk 00:20:59]} {[%emt 00:01:16]} Qxg4 {[%clk 00:07:02]} {[%emt 00:01:02]} 39.
hxg4 {[%clk 00:21:18]} {[%emt 00:00:10]} a3 {[%clk 00:06:51]} {[%emt 00:00:41]}
40. Nd2 {[%clk 00:20:43]} {[%emt 00:01:05]} Bf8 {[%clk 00:06:00]} {[%emt
00:01:22]} 41. Nd3 {[%clk 00:20:50]} {[%emt 00:00:22]} Be7 {[%clk 00:04:51]}
{[%emt 00:01:39]} 42. Kg2 {[%clk 00:12:12]} {[%emt 00:09:07]} Bxg5 {[%clk
00:05:10]} {[%emt 00:00:12]} 43. Nxe5 {[%clk 00:11:26]} {[%emt 00:01:16]} Bb7
{[%clk 00:04:14]} {[%emt 00:01:26]} 44. Nef3 {[%clk 00:10:16]} {[%emt
00:01:40]} Be3 {[%clk 00:04:36]} {[%emt 00:00:09]} 45. Kf1 {[%clk 00:10:14]}
{[%emt 00:00:32]} Bc8 {[%clk 00:04:45]} {[%emt 00:00:21]} 46. g5 {[%clk
00:09:24]} {[%emt 00:01:19]} Bg4 {[%clk 00:04:12]} {[%emt 00:01:03]} 47. c5
{[%clk 00:08:32]} {[%emt 00:01:22]} Kf8 {[%clk 00:04:25]} {[%emt 00:00:17]} 48.
Kg2 {[%clk 00:08:27]} {[%emt 00:00:36]} Ke8 {[%clk 00:03:20]} {[%emt 00:01:36]}
49. Nc4 {[%clk 00:04:59]} {[%emt 00:03:56]} Be6 {[%clk 00:03:02]} {[%emt
00:00:47]} 50. Nfe5 {[%clk 00:03:42]} {[%emt 00:01:49]} Bxg5 {[%clk 00:01:48]}
{[%emt 00:01:44]} 51. c6 {[%clk 00:03:25]} {[%emt 00:00:46]} Kd8 {[%clk
00:01:50]} {[%emt 00:00:29]} 52. Na5 {[%clk 00:01:45]} {[%emt 00:02:10]} Kc7
{[%clk 00:01:54]} {[%emt 00:00:26]} 53. Nd3 {[%clk 00:01:50]} {[%emt 00:00:24]}
Kb6 {[%clk 00:01:42]} {[%emt 00:00:43]} 54. Nb7 {[%clk 00:01:02]} {[%emt
00:01:18]} Be7 {[%clk 00:01:15]} {[%emt 00:00:57]} 0-1

[Event "The Kvibergspelen 2024"]
[Site "Kviberg Park Hotel & Conference, Krutvagen 2, Gothenburg, Sweden"]
[Date "2024.09.07"]
[Round "6.18"]
[White "Sigeman, Johan"]
[Black "Havner, Arvid"]
[Result "1/2-1/2"]
[TimeControl "15 minutes + 5 seconds per move from move one (Round 1 - 4) / 90 minutes + 30 seconds per move from move one (Round 5 - 8)"]
[WhiteFideId "1705601"]
[BlackFideId "1769308"]
[WhiteElo "2032"]
[BlackElo "1893"]

1. d4 {[%clk 01:30:57]} {[%emt 00:00:02]} d5 {[%clk 01:30:53]} {[%emt
00:00:08]} 2. Nf3 {[%clk 01:31:01]} {[%emt 00:00:26]} Nf6 {[%clk 01:31:12]}
{[%emt 00:00:11]} 3. g3 {[%clk 01:31:25]} {[%emt 00:00:07]} g6 {[%clk
01:31:03]} {[%emt 00:00:38]} 4. Bg2 {[%clk 01:31:41]} {[%emt 00:00:14]} Bg7
{[%clk 01:31:07]} {[%emt 00:00:25]} 5. O-O {[%clk 01:32:00]} {[%emt 00:00:11]}
O-O {[%clk 01:31:27]} {[%emt 00:00:10]} 6. c4 {[%clk 01:32:23]} {[%emt
00:00:09]} c6 {[%clk 01:31:32]} {[%emt 00:00:25]} 7. Nc3 {[%clk 01:31:33]}
{[%emt 00:01:19]} Nbd7 {[%clk 01:27:25]} {[%emt 00:04:37]} 8. Qb3 {[%clk
01:28:58]} {[%emt 00:03:05]} dxc4 {[%clk 01:24:46]} {[%emt 00:03:09]} 9. Qxc4
{[%clk 01:29:10]} {[%emt 00:00:18]} Nb6 {[%clk 01:24:49]} {[%emt 00:00:27]} 10.
Qd3 {[%clk 01:25:15]} {[%emt 00:04:24]} Be6 {[%clk 01:10:31]} {[%emt 00:14:50]}
11. Rd1 {[%clk 01:18:21]} {[%emt 00:07:23]} Bc4 {[%clk 01:08:10]} {[%emt
00:02:50]} 12. Qc2 {[%clk 01:18:19]} {[%emt 00:00:32]} Nfd5 {[%clk 01:02:53]}
{[%emt 00:05:48]} 13. a3 {[%clk 01:10:38]} {[%emt 00:08:11]} Nxc3 {[%clk
01:02:37]} {[%emt 00:00:46]} 14. bxc3 {[%clk 01:09:12]} {[%emt 00:01:56]} Nd7
{[%clk 01:00:35]} {[%emt 00:02:32]} 15. e4 {[%clk 01:06:56]} {[%emt 00:02:46]}
Qa5 {[%clk 00:54:16]} {[%emt 00:06:50]} 16. Nd2 {[%clk 01:00:11]} {[%emt
00:07:14]} Ba6 {[%clk 00:53:26]} {[%emt 00:01:20]} 17. Bb2 {[%clk 00:56:46]}
{[%emt 00:03:55]} c5 {[%clk 00:52:40]} {[%emt 00:01:16]} 18. Rac1 {[%clk
00:49:36]} {[%emt 00:07:40]} Rac8 {[%clk 00:51:22]} {[%emt 00:01:48]} 19. Bh3
{[%clk 00:43:43]} {[%emt 00:06:23]} Qc7 {[%clk 00:36:22]} {[%emt 00:15:30]} 20.
d5 {[%clk 00:33:38]} {[%emt 00:10:35]} c4 {[%clk 00:35:39]} {[%emt 00:01:13]}
21. Nf3 {[%clk 00:33:31]} {[%emt 00:00:38]} Rcd8 {[%clk 00:34:54]} {[%emt
00:01:15]} 22. Rb1 {[%clk 00:24:03]} {[%emt 00:09:58]} Nc5 {[%clk 00:34:13]}
{[%emt 00:01:09]} 23. Bc1 {[%clk 00:24:26]} {[%emt 00:00:08]} Qa5 {[%clk
00:32:20]} {[%emt 00:02:23]} 24. Bg5 {[%clk 00:23:22]} {[%emt 00:01:34]} Rfe8
{[%clk 00:31:10]} {[%emt 00:01:40]} 25. Be3 {[%clk 00:22:10]} {[%emt 00:01:42]}
Na4 {[%clk 00:29:20]} {[%emt 00:02:20]} 26. Bxa7 {[%clk 00:17:53]} {[%emt
00:04:48]} Ra8 {[%clk 00:20:29]} {[%emt 00:09:20]} 27. Bd7 {[%clk 00:14:12]}
{[%emt 00:04:10]} Nxc3 {[%clk 00:15:50]} {[%emt 00:05:09]} 28. Bb6 {[%clk
00:13:03]} {[%emt 00:01:40]} Qxa3 {[%clk 00:15:58]} {[%emt 00:00:22]} 29. Bxe8
{[%clk 00:13:24]} {[%emt 00:00:10]} Nxb1 {[%clk 00:15:46]} {[%emt 00:00:41]} 30.
Bxf7+ {[%clk 00:11:14]} {[%emt 00:02:39]} Kxf7 {[%clk 00:15:29]} {[%emt
00:00:47]} 31. Ng5+ {[%clk 00:11:38]} {[%emt 00:00:07]} Kg8 {[%clk 00:15:31]}
{[%emt 00:00:27]} 32. Rxb1 {[%clk 00:11:46]} {[%emt 00:00:23]} Qd3 {[%clk
00:13:36]} {[%emt 00:02:24]} 33. Rc1 {[%clk 00:11:15]} {[%emt 00:01:01]} Qxc2
{[%clk 00:13:18]} {[%emt 00:00:48]} 34. Rxc2 {[%clk 00:11:44]} {[%emt
00:00:02]} c3 {[%clk 00:13:24]} {[%emt 00:00:24]} 35. Ne6 {[%clk 00:10:58]}
{[%emt 00:01:16]} Bd3 {[%clk 00:13:23]} {[%emt 00:00:31]} 36. Rc1 {[%clk
00:11:06]} {[%emt 00:00:23]} c2 {[%clk 00:13:26]} {[%emt 00:00:26]} 37. Nxg7
{[%clk 00:10:45]} {[%emt 00:00:50]} Kxg7 {[%clk 00:13:14]} {[%emt 00:00:43]} 38.
f3 {[%clk 00:10:58]} {[%emt 00:00:17]} Ra4 {[%clk 00:06:06]} {[%emt 00:07:37]}
39. Kf2 {[%clk 00:09:11]} {[%emt 00:02:17]} Rb4 {[%clk 00:06:19]} {[%emt
00:00:17]} 40. Ke3 {[%clk 00:06:52]} {[%emt 00:02:50]} Rb1 {[%clk 00:05:20]}
{[%emt 00:01:28]} 41. Bd4+ {[%clk 00:04:54]} {[%emt 00:02:30]} Kf7 {[%clk
00:05:32]} {[%emt 00:00:17]} 42. Bb2 {[%clk 00:05:01]} {[%emt 00:00:23]} Bf1
{[%clk 00:05:36]} {[%emt 00:00:26]} 43. Rxc2 {[%clk 00:04:31]} {[%emt
00:01:01]} Re1+ {[%clk 00:05:35]} {[%emt 00:00:29]} 44. Kf2 {[%clk 00:04:03]}
{[%emt 00:00:59]} Rb1 {[%clk 00:04:16]} {[%emt 00:01:49]} 45. Ba3 {[%clk
00:02:47]} {[%emt 00:01:47]} Ra1 {[%clk 00:01:49]} {[%emt 00:02:56]} 46. Bb2
{[%clk 00:02:15]} {[%emt 00:01:02]} Rb1 {[%clk 00:02:14]} {[%emt 00:00:05]} 47.
Ba3 {[%clk 00:02:00]} {[%emt 00:00:46]} Ra1 {[%clk 00:02:37]} {[%emt 00:00:06]}
48. Bb2 {[%clk 00:01:11]} {[%emt 00:01:19]} 1/2-1/2

[Event "The Kvibergspelen 2024"]
[Site "Kviberg Park Hotel & Conference, Krutvagen 2, Gothenburg, Sweden"]
[Date "2024.09.07"]
[Round "6.19"]
[White "Simpson, Liam"]
[Black "Kallen, Jonas"]
[Result "1/2-1/2"]
[TimeControl "15 minutes + 5 seconds per move from move one (Round 1 - 4) / 90 minutes + 30 seconds per move from move one (Round 5 - 8)"]
[WhiteFideId "1778048"]
[BlackFideId "1712896"]
[WhiteElo "1881"]
[BlackElo "2026"]

1. e4 {[%clk 01:30:57]} {[%emt 00:00:02]} e5 {[%clk 01:30:41]} {[%emt
00:00:19]} 2. Nf3 {[%clk 01:31:01]} {[%emt 00:00:27]} Nc6 {[%clk 01:31:00]}
{[%emt 00:00:11]} 3. Bb5 {[%clk 01:30:58]} {[%emt 00:00:32]} Nf6 {[%clk
01:31:14]} {[%emt 00:00:16]} 4. O-O {[%clk 01:29:25]} {[%emt 00:02:03]} Nxe4
{[%clk 01:31:34]} {[%emt 00:00:10]} 5. Re1 {[%clk 01:29:34]} {[%emt 00:00:20]}
Nd6 {[%clk 01:30:18]} {[%emt 00:01:47]} 6. Nxe5 {[%clk 01:29:55]} {[%emt
00:00:10]} Be7 {[%clk 01:29:36]} {[%emt 00:01:11]} 7. Bxc6 {[%clk 01:25:38]}
{[%emt 00:04:47]} dxc6 {[%clk 01:29:59]} {[%emt 00:00:08]} 8. d4 {[%clk
01:25:57]} {[%emt 00:00:10]} O-O {[%clk 01:29:03]} {[%emt 00:01:25]} 9. c4
{[%clk 01:21:22]} {[%emt 00:05:05]} Nf5 {[%clk 01:23:56]} {[%emt 00:05:37]} 10.
Be3 {[%clk 01:15:44]} {[%emt 00:06:10]} Bf6 {[%clk 01:21:50]} {[%emt 00:02:36]}
11. Nc3 {[%clk 01:14:01]} {[%emt 00:02:13]} Re8 {[%clk 01:12:14]} {[%emt
00:10:05]} 12. Ne4 {[%clk 01:09:04]} {[%emt 00:05:26]} Bxe5 {[%clk 01:04:33]}
{[%emt 00:08:12]} 13. dxe5 {[%clk 01:08:50]} {[%emt 00:00:44]} Nxe3 {[%clk
01:04:14]} {[%emt 00:00:50]} 14. Rxe3 {[%clk 01:07:16]} {[%emt 00:02:03]} Qxd1+
{[%clk 01:02:12]} {[%emt 00:02:33]} 15. Rxd1 {[%clk 01:07:15]} {[%emt
00:00:31]} Be6 {[%clk 01:02:23]} {[%emt 00:00:18]} 16. b3 {[%clk 01:03:25]}
{[%emt 00:04:20]} Rad8 {[%clk 01:02:26]} {[%emt 00:00:26]} 17. Rxd8 {[%clk
00:59:04]} {[%emt 00:04:52]} Rxd8 {[%clk 01:02:53]} {[%emt 00:00:03]} 18. f4
{[%clk 00:59:04]} {[%emt 00:00:30]} b6 {[%clk 01:00:07]} {[%emt 00:03:16]} 19.
Kf2 {[%clk 00:57:22]} {[%emt 00:02:11]} Rd4 {[%clk 00:57:54]} {[%emt 00:02:44]}
20. Kf3 {[%clk 00:53:58]} {[%emt 00:03:53]} h5 {[%clk 00:58:04]} {[%emt
00:00:21]} 21. h3 {[%clk 00:54:20]} {[%emt 00:00:08]} h4 {[%clk 00:57:21]}
{[%emt 00:01:12]} 22. Ng5 {[%clk 00:50:27]} {[%emt 00:04:22]} Bf5 {[%clk
00:52:27]} {[%emt 00:05:26]} 23. e6 {[%clk 00:50:06]} {[%emt 00:00:51]} fxe6
{[%clk 00:52:25]} {[%emt 00:00:33]} 24. Nxe6 {[%clk 00:50:33]} {[%emt
00:00:03]} Rd7 {[%clk 00:51:15]} {[%emt 00:01:38]} 25. Ng5 {[%clk 00:50:22]}
{[%emt 00:00:43]} Rd3 {[%clk 00:38:39]} {[%emt 00:13:05]} 26. a3 {[%clk
00:41:31]} {[%emt 00:09:21]} c5 {[%clk 00:38:32]} {[%emt 00:00:38]} 27. b4
{[%emt 00:07:41]} cxb4 {[%emt 00:00:44]} 28. axb4 {[%clk 00:38:19]} {[%emt
00:00:14]} a5 {[%emt 00:03:44]} 29. bxa5 {[%clk 00:35:26]} {[%emt 00:00:01]}
bxa5 {[%emt 00:02:54]} 30. Ke2 {[%emt 00:01:23]} Rxe3+ {[%clk 00:34:03]} {[%emt
00:00:44]} 31. Kxe3 {[%clk 00:32:53]} {[%emt 00:00:11]} a4 {[%emt 00:00:43]} 32.
Kd2 {[%emt 00:00:37]} a3 {[%emt 00:00:13]} 33. Kc3 {[%emt 00:01:05]} Bd3 {[%emt
00:01:22]} 34. Nf3 {[%clk 00:32:14]} {[%emt 00:00:45]} Bxc4 {[%clk 00:31:49]}
{[%emt 00:01:38]} 35. Nxh4 {[%clk 00:32:36]} {[%emt 00:00:08]} Bd5 {[%clk
00:21:49]} {[%emt 00:10:29]} 36. g4 {[%clk 00:31:50]} {[%emt 00:01:17]} Kf7
{[%clk 00:17:19]} {[%emt 00:04:59]} 37. Nf5 {[%clk 00:31:05]} {[%emt 00:01:16]}
Kf6 {[%clk 00:11:19]} {[%emt 00:06:29]} 38. Nd4 {[%clk 00:28:05]} {[%emt
00:03:30]} c5 {[%clk 00:09:25]} {[%emt 00:02:24]} 39. Nf5 {[%clk 00:15:36]}
{[%emt 00:12:59]} c4 {[%clk 00:07:24]} {[%emt 00:02:33]} 40. Ne3 {[%clk
00:15:49]} {[%emt 00:00:16]} Ke6 {[%clk 00:07:06]} {[%emt 00:00:48]} 41. Nc2
{[%clk 00:11:09]} {[%emt 00:05:10]} a2 {[%clk 00:06:44]} {[%emt 00:00:52]} 42.
Kb2 {[%clk 00:10:05]} {[%emt 00:01:35]} c3+ {[%clk 00:04:40]} {[%emt 00:02:34]}
43. Kxc3 {[%clk 00:09:56]} {[%emt 00:00:39]} Bg2 {[%clk 00:04:59]} {[%emt
00:00:10]} 44. h4 {[%clk 00:09:07]} {[%emt 00:01:20]} Bh3 {[%clk 00:05:14]}
{[%emt 00:00:15]} 45. Kb2 {[%clk 00:07:48]} {[%emt 00:01:49]} Bxg4 {[%clk
00:05:25]} {[%emt 00:00:18]} 46. Ne3 {[%clk 00:08:12]} {[%emt 00:00:07]} Bh3
{[%clk 00:05:28]} {[%emt 00:00:24]} 47. Kxa2 {[%clk 00:08:39]} {[%emt
00:00:05]} Kf6 {[%clk 00:05:46]} {[%emt 00:00:12]} 48. Kb2 {[%clk 00:08:42]}
{[%emt 00:00:27]} Kg6 {[%clk 00:06:08]} {[%emt 00:00:08]} 49. Kc3 {[%clk
00:08:52]} {[%emt 00:00:20]} Kh5 {[%clk 00:06:30]} {[%emt 00:00:08]} 50. Kd4
{[%clk 00:09:11]} {[%emt 00:00:11]} Kxh4 {[%clk 00:06:49]} {[%emt 00:00:10]} 51.
Ke5 {[%clk 00:09:02]} {[%emt 00:00:39]} g5 {[%clk 00:07:07]} {[%emt 00:00:14]}
52. fxg5 {[%clk 00:09:30]} {[%emt 00:00:02]} Kxg5 {[%clk 00:07:31]} {[%emt
00:00:06]} 1/2-1/2

[Event "The Kvibergspelen 2024"]
[Site "Kviberg Park Hotel & Conference, Krutvagen 2, Gothenburg, Sweden"]
[Date "2024.09.07"]
[Round "6.20"]
[White "Thern, Alfred"]
[Black "Wickstrom, Carina"]
[Result "0-1"]
[TimeControl "15 minutes + 5 seconds per move from move one (Round 1 - 4) / 90 minutes + 30 seconds per move from move one (Round 5 - 8)"]
[WhiteFideId "1775227"]
[BlackFideId "1743201"]
[WhiteElo "1749"]
[BlackElo "2015"]

1. d4 {[%clk 01:30:53]} {[%emt 00:00:07]} d5 {[%clk 01:30:53]} {[%emt
00:00:07]} 2. Bf4 {[%clk 01:31:07]} {[%emt 00:00:16]} Nf6 {[%clk 01:31:07]}
{[%emt 00:00:16]} 3. Nf3 {[%clk 01:31:27]} {[%emt 00:00:10]} e6 {[%clk
01:31:31]} {[%emt 00:00:06]} 4. e3 {[%clk 01:31:29]} {[%emt 00:00:29]} c5
{[%clk 01:31:16]} {[%emt 00:00:45]} 5. c3 {[%clk 01:31:11]} {[%emt 00:00:48]}
Bd6 {[%clk 01:31:34]} {[%emt 00:00:12]} 6. Bg3 {[%clk 01:30:03]} {[%emt
00:01:38]} O-O {[%clk 01:31:39]} {[%emt 00:00:25]} 7. Bd3 {[%clk 01:29:18]}
{[%emt 00:01:15]} Qc7 {[%clk 01:30:59]} {[%emt 00:01:10]} 8. Nbd2 {[%clk
01:24:38]} {[%emt 00:05:09]} Nbd7 {[%clk 01:29:35]} {[%emt 00:01:54]} 9. O-O
{[%clk 01:24:39]} {[%emt 00:00:29]} b6 {[%clk 01:28:28]} {[%emt 00:01:37]} 10.
Qe2 {[%clk 01:20:18]} {[%emt 00:04:51]} Bb7 {[%clk 01:27:52]} {[%emt 00:01:06]}
11. Bxd6 {[%clk 01:17:13]} {[%emt 00:03:35]} Qxd6 {[%clk 01:28:13]} {[%emt
00:00:09]} 12. e4 {[%clk 01:16:35]} {[%emt 00:01:08]} e5 {[%clk 01:27:11]}
{[%emt 00:01:32]} 13. Rae1 {[%clk 01:04:50]} {[%emt 00:12:15]} cxd4 {[%clk
01:18:51]} {[%emt 00:08:50]} 14. cxd4 {[%clk 01:00:37]} {[%emt 00:04:43]} Rfe8
{[%clk 01:14:24]} {[%emt 00:04:57]} 15. dxe5 {[%clk 00:56:14]} {[%emt
00:04:53]} Nxe5 {[%clk 01:13:47]} {[%emt 00:01:07]} 16. Nxe5 {[%clk 00:55:30]}
{[%emt 00:01:14]} Qxe5 {[%clk 01:13:52]} {[%emt 00:00:25]} 17. Nf3 {[%clk
00:48:53]} {[%emt 00:07:07]} Qf4 {[%clk 01:11:38]} {[%emt 00:02:44]} 18. e5
{[%clk 00:41:08]} {[%emt 00:08:15]} Ne4 {[%clk 01:09:01]} {[%emt 00:03:07]} 19.
g3 {[%clk 00:29:19]} {[%emt 00:12:19]} Qg4 {[%clk 01:07:57]} {[%emt 00:01:34]}
20. Nd4 {[%clk 00:26:59]} {[%emt 00:02:49]} Qxe2 {[%clk 00:41:15]} {[%emt
00:27:13]} 21. Rxe2 {[%clk 00:26:15]} {[%emt 00:01:14]} a6 {[%clk 00:34:30]}
{[%emt 00:07:15]} 22. f4 {[%clk 00:23:13]} {[%emt 00:03:32]} g6 {[%clk
00:33:19]} {[%emt 00:01:40]} 23. Bxe4 {[%clk 00:11:40]} {[%emt 00:12:03]} dxe4
{[%clk 00:33:42]} {[%emt 00:00:08]} 24. Rc1 {[%clk 00:11:19]} {[%emt 00:00:51]}
Rac8 {[%clk 00:30:17]} {[%emt 00:03:55]} 25. Rec2 {[%clk 00:11:18]} {[%emt
00:00:31]} Rxc2 {[%clk 00:22:56]} {[%emt 00:07:51]} 26. Rxc2 {[%clk 00:11:35]}
{[%emt 00:00:14]} Rd8 {[%clk 00:23:10]} {[%emt 00:00:15]} 27. Nb3 {[%clk
00:05:54]} {[%emt 00:06:11]} e3 {[%clk 00:22:17]} {[%emt 00:01:23]} 28. Rc1
{[%clk 00:04:13]} {[%emt 00:02:11]} a5 {[%clk 00:14:34]} {[%emt 00:08:14]} 29.
Re1 {[%clk 00:03:41]} {[%emt 00:01:01]} a4 {[%clk 00:14:37]} {[%emt 00:00:27]}
30. Nc1 {[%clk 00:03:46]} {[%emt 00:00:24]} Rd2 {[%clk 00:13:53]} {[%emt
00:01:15]} 31. Ne2 {[%clk 00:02:02]} {[%emt 00:02:14]} Rxb2 {[%clk 00:12:17]}
{[%emt 00:02:06]} 32. Nc3 {[%clk 00:02:16]} {[%emt 00:00:16]} b5 {[%clk
00:04:00]} {[%emt 00:08:47]} 33. Rxe3 {[%clk 00:02:10]} {[%emt 00:00:36]} a3
{[%clk 00:03:49]} {[%emt 00:00:41]} 0-1

[Event "The Kvibergspelen 2024"]
[Site "Kviberg Park Hotel & Conference, Krutvagen 2, Gothenburg, Sweden"]
[Date "2024.09.07"]
[Round "6.21"]
[White "Green, David"]
[Black "Thyberg, Andre"]
[Result "0-1"]
[TimeControl "15 minutes + 5 seconds per move from move one (Round 1 - 4) / 90 minutes + 30 seconds per move from move one (Round 5 - 8)"]
[WhiteFideId "1769332"]
[BlackFideId "1764764"]
[WhiteElo "1869"]
[BlackElo "1994"]

1. e4 {[%clk 01:30:52]} {[%emt 00:00:07]} e5 {[%clk 01:30:43]} {[%emt
00:00:18]} 2. Nc3 {[%clk 01:30:59]} {[%emt 00:00:23]} Nf6 {[%clk 01:30:58]}
{[%emt 00:00:15]} 3. f4 {[%clk 01:31:19]} {[%emt 00:00:11]} d5 {[%clk
01:31:20]} {[%emt 00:00:08]} 4. fxe5 {[%clk 01:31:44]} {[%emt 00:00:05]} Nxe4
{[%emt 00:00:13]} 5. Qf3 {[%clk 01:30:57]} {[%emt 00:01:13]} f5 {[%clk
01:31:50]} {[%emt 00:00:21]} 6. d3 {[%clk 01:28:53]} {[%emt 00:02:35]} Nxc3
{[%clk 01:31:29]} {[%emt 00:00:51]} 7. bxc3 {[%clk 01:29:06]} {[%emt 00:00:17]}
d4 {[%clk 01:31:50]} {[%emt 00:00:09]} 8. Bb2 {[%clk 01:19:36]} {[%emt
00:09:59]} Nc6 {[%clk 01:31:19]} {[%emt 00:01:01]} 9. Qf4 {[%clk 01:09:37]}
{[%emt 00:10:28]} g5 {[%clk 01:18:16]} {[%emt 00:13:34]} 10. Qf3 {[%clk
00:53:55]} {[%emt 00:16:12]} Be6 {[%clk 01:13:37]} {[%emt 00:05:09]} 11. Qe2
{[%clk 00:45:22]} {[%emt 00:09:04]} g4 {[%clk 01:10:27]} {[%emt 00:03:39]} 12.
Qf2 {[%clk 00:35:20]} {[%emt 00:10:32]} dxc3 {[%clk 00:57:09]} {[%emt
00:13:48]} 13. Bxc3 {[%clk 00:35:06]} {[%emt 00:00:45]} Qd5 {[%clk 00:57:11]}
{[%emt 00:00:27]} 14. d4 {[%clk 00:16:18]} {[%emt 00:19:18]} O-O-O {[%clk
00:49:10]} {[%emt 00:08:30]} 15. Ne2 {[%clk 00:05:44]} {[%emt 00:11:05]} Bb4
{[%clk 00:46:48]} {[%emt 00:02:52]} 16. Rd1 {[%clk 00:02:08]} {[%emt 00:04:06]}
Qe4 {[%clk 00:45:12]} {[%emt 00:02:06]} 17. Rd3 {[%clk 00:00:53]} {[%emt
00:01:45]} Nxd4 {[%clk 00:43:10]} {[%emt 00:02:31]} 18. Kd1 {[%clk 00:00:31]}
{[%emt 00:00:53]} Nxc2 {[%clk 00:42:35]} {[%emt 00:01:04]} 19. Nf4 {[%clk
00:00:32]} {[%emt 00:00:31]} Ne3+ {[%clk 00:40:11]} {[%emt 00:02:53]} 20. Kc1
{[%clk 00:00:33]} {[%emt 00:00:29]} Ba3+ {[%clk 00:37:52]} {[%emt 00:02:48]} 21.
Kd2 {[%clk 00:00:32]} {[%emt 00:00:32]} Nxf1+ {[%clk 00:37:39]} {[%emt
00:00:43]} 22. Rxf1 {[%clk 00:00:31]} {[%emt 00:00:32]} Bc4 {[%clk 00:35:24]}
{[%emt 00:02:43]} 23. Rd4 {[%clk 00:00:31]} {[%emt 00:00:31]} Bc5 {[%clk
00:33:33]} {[%emt 00:02:20]} 24. Re1 {[%clk 00:00:32]} {[%emt 00:00:30]} Bxd4
{[%clk 00:33:25]} {[%emt 00:00:37]} 0-1